fUST/lending_fUST_20251222
["ID","MTS","AMOUNT","RATE_DAILY","PERIOD"]
[399436455,1766351442792,-143.00783479,9.461e-05,2]
[399436457,1766351442801,-154.11,9.559e-05,2]
[399436459,1766351442810,-690.02223112,9.604e-05,7]
[399436461,1766351442821,-263.83414708,9.604e-05,7]
[399436463,1766351442830,-617.75813813,9.628e-05,2]
[399436465,1766351442841,-767.93983771,9.628e-05,2]
[399436611,1766351445763,-420.07,9.628e-05,2]
[399436618,1766351459303,-375.01648314,7.274e-05,2]
[399436619,1766351459335,-4249.97703372,7.572e-05,2]
[399436620,1766351479282,-750.02296628,7.572e-05,2]
[399436623,1766351490567,169.9057501,4.426e-05,2]
[399436624,1766351493234,-451.47365391,7.649e-05,2]
[399436625,1766351493259,-140.63580019,7.649e-05,2]
[399436626,1766351494882,-13.44851466,7.649e-05,2]
[399436627,1766351494905,-162.7403711,7.649e-05,2]
[399436628,1766351497366,-307.55956557,7.649e-05,2]
[399436629,1766351497893,5000.0,7.572e-05,2]
[399436630,1766351507136,-60.86218265,7.649e-05,2]
[399436631,1766351507163,-126.27062417,7.65e-05,2]
[399436632,1766351510297,-207.17384502,7.65e-05,2]
[399436633,1766351513013,-300.00000566,7.65e-05,2]
[399436634,1766351515516,-257.18022174,7.649e-05,2]
[399436635,1766351517175,-242.81977826,7.649e-05,2]
[399436636,1766351517199,-79.31757973,7.649e-05,2]
[399436637,1766351519199,-238.01316205,7.649e-05,2]
[399436638,1766351520742,5000.0,7.649e-05,2]
[399436639,1766351522529,300.0,7.648e-05,2]
[399436640,1766351523417,300.0,7.648e-05,2]
[399436644,1766351539029,-182.66925822,7.649e-05,2]
[399436645,1766351539059,-500.0,7.649e-05,2]
[399436646,1766351539093,-279.02789939,7.649e-05,2]
[399436647,1766351539126,-500.0,7.649e-05,2]
[399436648,1766351539157,-500.0,7.649e-05,2]
[399436649,1766351539187,-500.0,7.649e-05,2]
[399436650,1766351539216,-500.0,7.649e-05,2]
[399436651,1766351539246,-500.0,7.649e-05,2]
[399436652,1766351539276,-500.0,7.649e-05,2]
[399436653,1766351539308,-500.0,7.649e-05,2]
[399436654,1766351539338,-500.0,7.649e-05,2]
[399436655,1766351539508,-500.0,7.649e-05,2]
[399436656,1766351539537,-282.61935626,7.649e-05,2]
[399436657,1766351539568,-500.0,7.649e-05,2]
[399436658,1766351539598,-500.0,7.649e-05,2]
[399436659,1766351539630,-500.0,7.649e-05,2]
[399436660,1766351539662,-500.0,7.649e-05,2]
[399436661,1766351539692,-500.0,7.649e-05,2]
[399436662,1766351539721,-500.0,7.649e-05,2]
[399436663,1766351539754,-639.60320252,7.649e-05,2]
[399436664,1766351539786,-500.0,7.649e-05,2]
[399436665,1766351539958,-500.0,7.649e-05,2]
[399436666,1766351539988,-500.0,7.649e-05,2]
[399436667,1766351540019,-500.0,7.649e-05,2]
[399436668,1766351540048,-500.0,7.649e-05,2]
[399436669,1766351540081,-500.0,7.649e-05,2]
[399436670,1766351540111,-500.0,7.649e-05,2]
[399436671,1766351540142,-500.0,7.649e-05,2]
[399436672,1766351540173,-500.0,7.649e-05,2]
[399436673,1766351540202,-500.0,7.649e-05,2]
[399436674,1766351540231,-500.0,7.649e-05,2]
[399436675,1766351540339,-500.0,7.649e-05,2]
[399436676,1766351540368,-500.0,7.649e-05,2]
[399436677,1766351540397,-500.0,7.649e-05,2]
[399436678,1766351540428,-500.0,7.649e-05,2]
[399436679,1766351540458,-428.26193562,7.649e-05,2]
[399436683,1766351544535,5000.0,7.65e-05,2]
[399436685,1766351557987,-298.32210853,7.65e-05,2]
[399436686,1766351582834,-246.71556778,7.573e-05,2]
[399436687,1766351590075,-4512.8515653,7.497e-05,2]
[399436688,1766351590440,-4753.28443222,7.573e-05,2]
[399436689,1766351597778,-186.63,7.648e-05,2]
[399436690,1766351599751,-287.10778875,7.648e-05,2]
[399436691,1766351603954,-438.24838184,7.648e-05,2]
[399436692,1766351606887,-288.01382941,7.648e-05,2]
[399436693,1766351606910,-105.3721011,7.649e-05,2]
[399436694,1766351612624,-210.80873071,7.649e-05,2]
[399436695,1766351612647,-140.8693713,7.649e-05,2]
[399436696,1766351614305,-185.84952116,7.649e-05,2]
[399436697,1766351614686,5000.0,7.573e-05,2]
[399436698,1766351620406,-173.28110754,7.649e-05,2]
[399436699,1766351620429,-126.71889246,7.649e-05,2]
[399436700,1766351623602,-173.28110754,7.649e-05,2]
[399436701,1766351623629,-199.93475873,7.65e-05,2]
[399436702,1766351630309,-287.04156794,7.65e-05,2]
[399436703,1766351630906,886.46216338,7.648e-05,2]
[399436704,1766351631688,-885.00088218,7.65e-05,2]
[399436705,1766351635807,-292.39421842,7.65e-05,2]
[399436706,1766351637398,-546.0,7.65e-05,2]
[399436707,1766351638665,4113.54783662,7.648e-05,2]
[399436708,1766351638691,886.45216338,7.648e-05,2]
[399436709,1766351639823,-379.78237575,7.65e-05,2]
[399436710,1766351643185,247.08074459,7.001e-05,2]
[399436711,1766351645057,-155.09730309,7.649e-05,2]
[399436712,1766351645117,444.74534027,7.145e-05,2]
[399436713,1766351646782,790.6583827,7.289e-05,2]
[399436714,1766351648955,-144.90269691,7.649e-05,2]
[399436715,1766351648983,-229.07904628,7.65e-05,2]
[399436716,1766351651826,-289.10183338,7.65e-05,2]
[399436717,1766351653825,-378.89501942,7.65e-05,2]
[399436718,1766351661916,-385.76599839,7.65e-05,2]
[399436719,1766351662768,5000.0,7.649e-05,2]
[399436720,1766351668084,-454.60392502,7.65e-05,2]
[399436721,1766351670584,-402.03578333,7.65e-05,2]
[399436722,1766351676471,-270.70932363,7.65e-05,2]
[399436723,1766351678480,-183.13606312,7.65e-05,2]
[399436724,1766351684213,-180.23486471,7.65e-05,2]
[399436725,1766351685649,5000.0,7.65e-05,2]
[399436726,1766351686205,-183.24628112,7.65e-05,2]
[399436727,1766351689641,-180.59410517,7.65e-05,2]
[399436728,1766351692294,-272.31389483,7.65e-05,2]
[399436729,1766351694980,-440.03371888,7.65e-05,2]
[399436730,1766351702304,231.0,7.649e-05,2]
[399436731,1766351702546,300.0,7.649e-05,2]
[399436732,1766351702987,275.0,7.649e-05,2]
[399436733,1766351703094,300.0,7.649e-05,2]
[399436734,1766351703959,300.0,7.649e-05,2]
[399436735,1766351706410,488.35203654,7.649e-05,2]
[399436736,1766351707646,1200.0,7.649e-05,2]
[399436737,1766351708728,1905.65796346,7.65e-05,2]
[399436738,1766351708760,3094.34203654,7.65e-05,2]
[399436739,1766351723635,197.28870018,7.649e-05,2]
[399436740,1766351724747,6708.37926328,7.65e-05,2]
[399436741,1766351724770,10000.01,7.65e-05,2]
[399436742,1766351724794,3291.61073672,7.65e-05,2]
[399436743,1766351725195,500.0,7.649e-05,2]
[399436744,1766351725242,500.0,7.649e-05,2]
[399436745,1766351725286,500.0,7.649e-05,2]
[399436746,1766351725320,606.39781585,7.649e-05,2]
[399436747,1766351725353,500.0,7.649e-05,2]
[399436748,1766351725402,500.0,7.649e-05,2]
[399436749,1766351725442,500.0,7.649e-05,2]
[399436750,1766351725483,500.0,7.649e-05,2]
[399436751,1766351725532,500.0,7.649e-05,2]
[399436752,1766351725564,500.0,7.649e-05,2]
[399436753,1766351725600,500.0,7.649e-05,2]
[399436754,1766351725636,500.0,7.649e-05,2]
[399436755,1766351725674,500.0,7.649e-05,2]
[399436756,1766351725714,102.00144743,7.649e-05,2]
[399436757,1766351725739,397.99855257,7.649e-05,2]
[399436758,1766351725770,500.0,7.649e-05,2]
[399436759,1766351731988,5000.0,7.65e-05,2]
[399436760,1766351745151,555.14755954,7.649e-05,2]
[399436761,1766351748963,411.48211654,7.112e-05,2]
[399436762,1766351750959,470.26527605,7.243e-05,2]
[399436766,1766351756107,2665.1164953,7.65e-05,2]
[399436767,1766351756133,2334.8835047,7.65e-05,2]
[399436768,1766351756172,500.0,7.649e-05,2]
[399436769,1766351756206,500.0,7.649e-05,2]
[399436770,1766351756246,500.0,7.649e-05,2]
[399436771,1766351756285,500.0,7.649e-05,2]
[399436772,1766351756317,500.0,7.649e-05,2]
[399436773,1766351756348,500.0,7.649e-05,2]
[399436774,1766351756378,500.0,7.649e-05,2]
[399436775,1766351756412,500.0,7.649e-05,2]
[399436776,1766351756443,500.0,7.649e-05,2]
[399436777,1766351756480,500.0,7.649e-05,2]
[399436778,1766351756511,500.0,7.649e-05,2]
[399436779,1766351756541,500.0,7.649e-05,2]
[399436780,1766351756571,509.62908699,7.649e-05,2]
[399436781,1766351756605,500.0,7.649e-05,2]
[399436782,1766351756638,500.0,7.649e-05,2]
[399436783,1766351756671,155.49740831,7.649e-05,2]
[399436784,1766351756695,344.50259169,7.649e-05,2]
[399436785,1766351756726,500.0,7.649e-05,2]
[399436786,1766351756755,500.0,7.649e-05,2]
[399436787,1766351756790,500.0,7.649e-05,2]
[399436788,1766351762435,300.0,7.649e-05,2]
[399436789,1766351785508,-364.05999914,7.573e-05,2]
[399436790,1766351786251,-10000.01,7.65e-05,2]
[399436791,1766351786295,-10000.01,7.65e-05,2]
[399436792,1766351786311,-10000.01,7.65e-05,2]
[399436793,1766351786375,-10000.01,7.65e-05,2]
[399436794,1766351786554,-10000.01,7.65e-05,2]
[399436795,1766351786776,-10000.01,7.65e-05,2]
[399436798,1766351853578,-2841.23321992,7.572e-05,2]
[399436799,1766351882257,300.0,7.648e-05,2]
[399436800,1766351887552,431.0,7.648e-05,2]
[399436801,1766351912716,500.0,7.648e-05,2]
[399436802,1766351912773,203.9783034,7.648e-05,2]
[399436803,1766351912803,500.0,7.648e-05,2]
[399436804,1766351912833,408.78420146,7.648e-05,2]
[399436805,1766351912864,500.0,7.648e-05,2]
[399436806,1766351912910,500.0,7.648e-05,2]
[399436807,1766351912960,604.41264053,7.648e-05,2]
[399436808,1766351912996,500.0,7.648e-05,2]
[399436809,1766351913027,500.0,7.648e-05,2]
[399436810,1766351913068,500.0,7.648e-05,2]
[399436811,1766351913106,345.15531287,7.648e-05,2]
[399436812,1766351913143,500.0,7.648e-05,2]
[399436813,1766351913181,500.0,7.648e-05,2]
[399436814,1766351913224,500.0,7.648e-05,2]
[399436815,1766351913263,500.0,7.648e-05,2]
[399436816,1766351913308,500.0,7.648e-05,2]
[399436817,1766351913375,500.0,7.648e-05,2]
[399436818,1766351913420,500.0,7.648e-05,2]
[399436819,1766351913458,500.0,7.648e-05,2]
[399436820,1766351913494,206.67954174,7.648e-05,2]
[399436821,1766351913519,293.32045826,7.648e-05,2]
[399436822,1766351913555,500.0,7.648e-05,2]
[399436823,1766351913598,500.0,7.648e-05,2]
[399436824,1766351913635,500.0,7.648e-05,2]
[399436825,1766351913672,500.0,7.648e-05,2]
[399436826,1766351913718,500.0,7.648e-05,2]
[399436827,1766351913757,500.0,7.648e-05,2]
[399436828,1766351913803,500.0,7.648e-05,2]
[399436829,1766351913843,500.0,7.648e-05,2]
[399436830,1766351913880,500.0,7.648e-05,2]
[399436831,1766351913920,500.0,7.648e-05,2]
[399436832,1766351913964,500.0,7.648e-05,2]
[399436833,1766351913995,500.0,7.648e-05,2]
[399436834,1766351914030,500.0,7.648e-05,2]
[399436835,1766351914069,500.0,7.648e-05,2]
[399436836,1766351914113,500.0,7.648e-05,2]
[399436837,1766351914158,500.0,7.648e-05,2]
[399436838,1766351914194,369.82542816,7.648e-05,2]
[399436839,1766351914232,500.0,7.648e-05,2]
[399436840,1766351914267,500.0,7.648e-05,2]
[399436841,1766351914305,336.86411358,7.648e-05,2]
[399436842,1766351914331,163.13588642,7.648e-05,2]
[399436843,1766351914382,500.0,7.648e-05,2]
[399436844,1766351914418,500.0,7.648e-05,2]
[399436845,1766351914450,500.0,7.648e-05,2]
[399436846,1766351914492,500.0,7.648e-05,2]
[399436847,1766351924550,500.0,7.648e-05,2]
[399436848,1766351958789,309.43635421,7.109e-05,2]
[399436849,1766351960493,353.64154767,7.238e-05,2]
[399436850,1766352003717,300.0,7.649e-05,2]
[399436851,1766352006808,1200.0,7.649e-05,2]
[399436852,1766352007809,1505.84617599,7.65e-05,2]
[399436853,1766352009541,151.0,7.65e-05,2]
[399436854,1766352010132,159.95154747,7.65e-05,2]
[399436855,1766352012782,574.12855637,7.65e-05,2]
[399436856,1766352013940,500.0,7.65e-05,2]
[399436857,1766352015048,500.0,7.65e-05,2]
[399436858,1766352015413,1431.27063361,7.65e-05,2]
[399436859,1766352015690,500.0,7.65e-05,2]
[399436860,1766352017195,250.0,7.65e-05,2]
[399436861,1766352017336,251.92855197,7.65e-05,2]
[399436862,1766352017868,250.0,7.65e-05,2]
[399436863,1766352018477,250.0,7.65e-05,2]
[399436864,1766352018535,500.0,7.65e-05,2]
[399436865,1766352019137,250.0,7.65e-05,2]
[399436866,1766352019637,500.0,7.65e-05,2]
[399436867,1766352019750,250.0,7.65e-05,2]
[399436868,1766352020262,12.80663271,7.65e-05,2]
[399436869,1766352020287,487.19336729,7.65e-05,2]
[399436870,1766352020420,250.0,7.65e-05,2]
[399436871,1766352020880,500.0,7.65e-05,2]
[399436872,1766352021028,250.0,7.65e-05,2]
[399436873,1766352021530,500.0,7.65e-05,2]
[399436874,1766352021915,250.0,7.65e-05,2]
[399436875,1766352022162,500.0,7.65e-05,2]
[399436876,1766352022567,250.0,7.65e-05,2]
[399436877,1766352022768,500.0,7.65e-05,2]
[399436878,1766352023189,250.0,7.65e-05,2]
[399436879,1766352023400,453.93245012,7.65e-05,2]
[399436880,1766352023801,250.0,7.65e-05,2]
[399436881,1766352033943,250.0,7.65e-05,2]
[399436882,1766352034540,250.0,7.65e-05,2]
[399436883,1766352035630,250.0,7.65e-05,2]
[399436884,1766352036262,250.0,7.65e-05,2]
[399436885,1766352037626,-1895.74829617,7.65e-05,2]
[399436886,1766352037677,-10000.01,7.65e-05,2]
[399436887,1766352037743,-10000.01,7.65e-05,2]
[399436888,1766352038805,-10000.01,7.65e-05,2]
[399436889,1766352038821,-10000.01,7.65e-05,2]
[399436890,1766352038836,-10000.01,7.65e-05,2]
[399436891,1766352092761,-317.24804787,7.649e-05,2]
[399436892,1766352093323,487.1484347,7.649e-05,2]
[399436894,1766352107279,175.366,7.497e-05,2]
[399436895,1766352223215,2207.4530059,7.144e-05,2]
[399436896,1766352271522,216.7837987,7.087e-05,2]
[399436897,1766352290505,209.4069483,7.144e-05,2]
[399436898,1766352306762,1200.0,7.648e-05,2]
[399436899,1766352352850,345.323263,7.196e-05,2]
[399436902,1766352444032,-182.75195213,7.649e-05,2]
[399436903,1766352444067,-500.0,7.649e-05,2]
[399436904,1766352444103,-500.0,7.649e-05,2]
[399436905,1766352444137,-436.98254281,7.649e-05,2]
[399436906,1766352444172,-500.0,7.649e-05,2]
[399436907,1766352444207,-500.0,7.649e-05,2]
[399436908,1766352444238,-238.27994388,7.649e-05,2]
[399436909,1766352444270,-500.0,7.649e-05,2]
[399436910,1766352444304,-450.00000002,7.649e-05,2]
[399436911,1766352444334,-303.06831638,7.649e-05,2]
[399436912,1766352444364,-574.12855637,7.65e-05,2]
[399436914,1766352508324,629.58737682,7.55e-05,2]
[399436915,1766352508353,10000.01,7.55e-05,2]
[399436916,1766352508380,10000.01,7.55e-05,2]
[399436917,1766352508410,10000.01,7.55e-05,2]
[399436918,1766352508438,10000.01,7.55e-05,2]
[399436919,1766352508466,10000.01,7.55e-05,2]
[399436920,1766352508492,10000.01,7.55e-05,2]
[399436921,1766352508521,10000.01,7.55e-05,2]
[399436922,1766352508548,10000.01,7.55e-05,2]
[399436923,1766352508575,10000.01,7.55e-05,2]
[399436924,1766352527806,-202.36140151,7.549e-05,2]
[399436925,1766352529228,-297.63859849,7.549e-05,2]
[399436926,1766352529251,-199.91796572,7.549e-05,2]
[399436927,1766352530744,-16.877995,7.549e-05,2]
[399436928,1766352530768,-209.2122901,7.549e-05,2]
[399436929,1766352532258,-6.00799243,7.549e-05,2]
[399436930,1766352532284,-154.3539597,7.55e-05,2]
[399437000,1766352637766,-297.08773857,7.55e-05,2]
[399437002,1766352637776,-1231.33063298,7.55e-05,2]
[399437271,1766352640507,-3e-08,7.55e-05,2]
[399437273,1766352640519,-1833.34169242,7.55e-05,2]
[399437275,1766352640530,-60186.89106809,7.55e-05,2]
[399437513,1766352642918,-2748.4039686,7.55e-05,2]
[399437515,1766352642929,-2080.75000043,7.55e-05,2]
[399437662,1766352646016,-868.82247036,7.55e-05,2]
[399437663,1766352646028,-12320.31687412,7.55e-05,2]
[399437664,1766352646040,-309690.77101278,7.55e-05,2]
[399437665,1766352646051,-15366.6133202,7.55e-05,2]
[399437669,1766352662343,300.0,7.549e-05,2]
[399437670,1766352676061,-6452.59877049,7.55e-05,2]
[399437671,1766352676221,-10000.01,7.55e-05,2]
[399437672,1766352676419,-10000.01,7.55e-05,2]
[399437673,1766352676639,-2604.39650748,7.55e-05,2]
[399437674,1766352676670,-526.0,7.55e-05,2]
[399437675,1766352676700,-1000.0,7.65e-05,2]
[399437676,1766352676729,-739.21698504,7.65e-05,2]
[399437677,1766352676799,-260.78301496,7.65e-05,2]
[399437678,1766352676849,-1000.0,7.65e-05,2]
[399437679,1766352676879,-1000.0,7.65e-05,2]
[399437680,1766352676908,-1000.0,7.65e-05,2]
[399437681,1766352676938,-1000.0,7.65e-05,2]
[399437682,1766352676967,-1000.0,7.65e-05,2]
[399437683,1766352677084,-1000.0,7.65e-05,2]
[399437684,1766352677115,-1000.0,7.65e-05,2]
[399437685,1766352677144,-1000.0,7.65e-05,2]
[399437686,1766352677173,-1000.0,7.65e-05,2]
[399437687,1766352677202,-319.61079269,7.65e-05,2]
[399437688,1766352677236,-217.03498137,7.65e-05,2]
[399437689,1766352677406,-0.01,7.65e-05,2]
[399437690,1766352677422,-926.71845188,7.65e-05,2]
[399437691,1766352677451,-10000.01,7.65e-05,2]
[399437693,1766352722341,-10000.01,7.65e-05,2]
[399437694,1766352722701,-76.71540994,7.65e-05,2]
[399437695,1766352722726,-9846.57918012,7.65e-05,2]
[399437696,1766352738966,500.0,7.549e-05,2]
[399437697,1766352738995,319.88662106,7.549e-05,2]
[399437698,1766352739026,500.0,7.549e-05,2]
[399437699,1766352739054,500.0,7.549e-05,2]
[399437700,1766352739089,500.0,7.549e-05,2]
[399437701,1766352739123,500.0,7.549e-05,2]
[399437702,1766352739153,500.0,7.549e-05,2]
[399437703,1766352739184,398.00074638,7.549e-05,2]
[399437704,1766352739332,500.0,7.549e-05,2]
[399437705,1766352739363,500.0,7.549e-05,2]
[399437706,1766352739394,500.0,7.549e-05,2]
[399437707,1766352739635,500.0,7.549e-05,2]
[399437708,1766352739680,486.61220075,7.549e-05,2]
[399437709,1766352740233,500.0,7.549e-05,2]
[399437710,1766352740268,407.23392661,7.549e-05,2]
[399437711,1766352740300,623.28843936,7.549e-05,2]
[399437712,1766352740330,270.29103958,7.549e-05,2]
[399437713,1766352742801,-301.97138918,7.726e-05,2]
[399437714,1766352770573,-300.0,7.801e-05,2]
[399437715,1766352770603,-300.0,7.801e-05,2]
[399437716,1766352770634,-300.0,7.801e-05,2]
[399437717,1766352770663,-300.0,7.801e-05,2]
[399437718,1766352770696,-300.0,7.801e-05,2]
[399437719,1766352770727,-300.0,7.801e-05,2]
[399437720,1766352770758,-300.0,7.801e-05,2]
[399437721,1766352770788,-300.0,7.801e-05,2]
[399437722,1766352770820,-300.0,7.801e-05,2]
[399437723,1766352770851,-300.0,7.801e-05,2]
[399437724,1766352770881,-300.0,7.801e-05,2]
[399437725,1766352770911,-300.0,7.801e-05,2]
[399437726,1766352770939,-300.0,7.801e-05,2]
[399437727,1766352770968,-300.0,7.801e-05,2]
[399437728,1766352770998,-300.0,7.801e-05,2]
[399437729,1766352771031,-400.01,7.801e-05,2]
[399437730,1766352771194,-199.99,7.801e-05,2]
[399437731,1766352771225,-161.54,7.801e-05,2]
[399437732,1766352791455,-976.67,7.884e-05,2]
[399437733,1766352852082,964.24,7.817e-05,2]
[399437734,1766352861953,188.11576254,7.103e-05,2]
[399437735,1766352933311,951.97,7.801e-05,2]
[399437736,1766353014659,939.85,7.796e-05,2]
[399437737,1766353095886,927.89,7.798e-05,2]
[399437738,1766353148010,184.46144816,7.824e-05,2]
[399437739,1766353153897,1813.245417,7.215e-05,2]
[399437740,1766353178093,916.08,7.791e-05,2]
[399437741,1766353218875,166.0,7.884e-05,2]
[399437742,1766353248481,807.12592178,7.591e-05,2]
[399437743,1766353250105,334.0,7.884e-05,2]
[399437744,1766353254669,334.0,7.884e-05,2]
[399437745,1766353255188,334.0,7.884e-05,2]
[399437746,1766353255710,334.0,7.884e-05,2]
[399437747,1766353256259,334.0,7.884e-05,2]
[399437748,1766353257160,334.0,7.884e-05,2]
[399437749,1766353257672,334.0,7.884e-05,2]
[399437750,1766353257794,904.42,7.785e-05,2]
[399437751,1766353258211,334.0,7.884e-05,2]
[399437752,1766353258728,334.0,7.884e-05,2]
[399437753,1766353259221,334.0,7.884e-05,2]
[399437754,1766353259781,0.93721306,7.884e-05,2]
[399437755,1766353259804,333.06278694,7.884e-05,2]
[399437756,1766353260537,334.0,7.884e-05,2]
[399437757,1766353260828,334.0,7.884e-05,2]
[399437758,1766353264055,334.0,7.884e-05,2]
[399437759,1766353264613,334.0,7.884e-05,2]
[399437760,1766353265126,334.0,7.884e-05,2]
[399437761,1766353265657,334.0,7.884e-05,2]
[399437762,1766353266202,334.0,7.884e-05,2]
[399437763,1766353267511,334.0,7.884e-05,2]
[399437764,1766353268054,334.0,7.884e-05,2]
[399437765,1766353268558,282.39020812,7.884e-05,2]
[399437766,1766353269484,334.0,7.884e-05,2]
[399437767,1766353269991,334.0,7.884e-05,2]
[399437768,1766353270497,334.0,7.884e-05,2]
[399437769,1766353271033,334.0,7.884e-05,2]
[399437770,1766353271539,334.0,7.884e-05,2]
[399437771,1766353275307,334.0,7.884e-05,2]
[399437772,1766353275888,334.0,7.884e-05,2]
[399437773,1766353276425,334.0,7.884e-05,2]
[399437774,1766353276930,334.0,7.884e-05,2]
[399437776,1766353338464,892.91,7.788e-05,2]
[399437777,1766353419691,881.55,7.797e-05,2]
[399437778,1766353447814,579.16491494,7.635e-05,2]
[399437779,1766353460914,268.63131632,7.854e-05,2]
[399437781,1766353485041,5000.0,7.951e-05,2]
[399437782,1766353500862,870.33,7.787e-05,2]
[399437783,1766353519307,166.0,7.951e-05,2]
[399437784,1766353519918,166.0,7.951e-05,2]
[399437785,1766353520503,166.0,7.951e-05,2]
[399437786,1766353520545,163.0,7.951e-05,2]
[399437787,1766353520589,152.0,7.951e-05,2]
[399437788,1766353520731,163.0,7.951e-05,2]
[399437789,1766353520860,152.0,7.951e-05,2]
[399437790,1766353521258,163.0,7.951e-05,2]
[399437791,1766353521431,152.0,7.951e-05,2]
[399437792,1766353522281,64.42376874,7.951e-05,2]
[399437793,1766353522307,157.42663324,7.951e-05,2]
[399437794,1766353523376,166.0,7.951e-05,2]
[399437795,1766353523979,166.0,7.951e-05,2]
[399437796,1766353524439,166.0,7.951e-05,2]
[399437797,1766353524508,172.0,7.951e-05,2]
[399437798,1766353525012,166.0,7.951e-05,2]
[399437799,1766353525561,166.0,7.951e-05,2]
[399437800,1766353525744,152.0,7.951e-05,2]
[399437801,1766353526099,166.0,7.951e-05,2]
[399437802,1766353526279,152.0,7.951e-05,2]
[399437803,1766353526628,166.0,7.951e-05,2]
[399437804,1766353526810,152.0,7.951e-05,2]
[399437805,1766353527147,172.0,7.951e-05,2]
[399437806,1766353527328,152.0,7.951e-05,2]
[399437807,1766353527830,295.3853916,7.951e-05,2]
[399437808,1766353528377,152.0,7.951e-05,2]
[399437809,1766353531118,1781.83148249,7.951e-05,2]
[399437810,1766353533447,-153.01101791,7.99e-05,2]
[399437811,1766353533469,-532.0,7.991e-05,2]
[399437812,1766353533491,-43.41279789,7.991e-05,2]
[399437813,1766353536047,-388.02875159,7.991e-05,2]
[399437814,1766353538252,-199.58608623,7.991e-05,2]
[399437815,1766353539815,152.0,7.951e-05,2]
[399437816,1766353540326,152.0,7.951e-05,2]
[399437817,1766353540596,-203.20193369,7.991e-05,2]
[399437818,1766353540827,152.0,7.951e-05,2]
[399437819,1766353541305,152.0,7.951e-05,2]
[399437820,1766353541869,152.0,7.951e-05,2]
[399437821,1766353542392,152.0,7.951e-05,2]
[399437822,1766353543674,157.20273873,7.951e-05,2]
[399437823,1766353543701,-34.70504152,7.991e-05,2]
[399437824,1766353543724,-275.07934033,8.014e-05,2]
[399437825,1766353551079,234.77442453,7.821e-05,2]
[399437826,1766353554999,4195.38932941,7.951e-05,2]
[399437827,1766353555028,804.61067059,7.951e-05,2]
[399437828,1766353578063,2045.96614108,7.951e-05,2]
[399437829,1766353583670,878.74,7.786e-05,2]
[399437830,1766353593820,4164.71352429,7.951e-05,2]
[399437831,1766353601565,2105.97966404,7.951e-05,2]
[399437832,1766353601601,581.80532918,7.951e-05,2]
[399437833,1766353624918,443.3782912,7.951e-05,2]
[399437834,1766353635981,174.736573,0.00028767,60]
[399437835,1766353648073,4556.6217088,7.951e-05,2]
[399437836,1766353665213,867.56,7.801e-05,2]
[399437841,1766353746857,856.52,7.799e-05,2]
[399437842,1766353757793,-255.81622234,7.96e-05,2]
[399437844,1766353759820,-197.79623766,7.96e-05,2]
[399437846,1766353761662,-158.05747073,7.96e-05,2]
[399437847,1766353763871,453.61246,7.951e-05,2]
[399437850,1766353786538,158.05747073,7.951e-05,2]
[399437851,1766353817879,-125.43801613,7.96e-05,2]
[399437852,1766353817906,-322.22013339,7.96e-05,2]
[399437853,1766353827128,845.62,7.779e-05,2]
[399437873,1766353831967,447.65814952,7.951e-05,2]
[399437874,1766353832030,-209.77986661,7.96e-05,2]
[399437875,1766353832040,-290.43037459,8.093e-05,2]
[399437876,1766353832049,-1691.24,8.149e-05,2]
[399437877,1766353832058,-652.7057935,8.219e-05,2]
[399437878,1766353832068,-1200.0,8.22e-05,2]
[399437879,1766353832078,-300.0,8.221e-05,2]
[399437880,1766353832088,-1200.0,8.221e-05,2]
[399437881,1766353832099,-300.0,8.221e-05,2]
[399437882,1766353832109,-300.0,8.221e-05,2]
[399437883,1766353832118,-300.0,8.221e-05,2]
[399437884,1766353832129,-196.6990044,8.221e-05,2]
[399437885,1766353832138,-500.0,8.221e-05,2]